bitfinex/quotes_ETHUSD_20240731
["timestamp","ask_amount","ask_price","bid_price","bid_amount"]
[1722455525527,0.05000007,3259.9,3259.8,5.4e-06]
[1722455525766,3.06661,3261.0,3259.8,5.4e-06]
[1722455525767,0.05000007,3260.4,3259.8,5.4e-06]
[1722455525909,2.3078,3261.4,3259.8,5.4e-06]
[1722455525910,3.06673,3260.9,3259.8,5.4e-06]
[1722455526079,0.05000007,3260.8,3259.8,5.4e-06]
[1722455526278,6.13298,3261.1,3259.9,35.0]
[1722455526528,3.06659,3261.0,3259.9,35.0]
[1722455526747,3.06599,3261.6,3260.2,3.06721]
[1722455527031,3.06588,3261.7,3260.2,3.06721]
[1722455527240,3.06588,3261.7,3260.5,35.0]
[1722455527241,3.372468,3261.7,3260.5,35.0]
[1722455527584,3.06598,3261.6,3260.6,3.06691]
[1722455527947,3.06532,3262.3,3260.5,35.0]
[1722455527948,3.06513,3262.5,3260.5,35.0]
[1722455528146,3.06638,3261.2,3260.5,35.0]
[1722455528444,0.05000007,3261.1,3260.5,35.0]
[1722455529036,3.06671,3260.9,3260.5,35.0]
[1722455529177,0.05000007,3260.8,3260.5,35.0]
[1722455529642,3.11636007,3261.2,3260.5,35.0]
[1722455529990,3.06656,3261.0,3260.5,35.0]
[1722455530219,3.0659,3261.7,3260.5,37.98520829]
[1722455530537,1.22464898,3263.2,3260.5,37.98520829]
[1722455530538,3.06543,3262.2,3261.0,2.452]
[1722455530747,3.06523,3262.4,3261.3,3.06619]
[1722455530905,3.06523,3262.4,3261.0,2.452]
[1722455530906,3.06523,3262.4,3261.4,38.06616]
[1722455531282,3.06506,3262.6,3261.6,3.06596]
[1722455531536,3.11513007,3262.5,3261.4,35.0]
[1722455531833,3.06495,3262.7,3261.7,3.06587]
[1722455532072,3.06467,3263.0,3261.8,3.06572]
[1722455532188,3.06485,3262.8,3261.7,3.06583]
[1722455532389,5.47524,3263.5,3261.5,1.09605008]
[1722455532390,3.11495007,3262.7,3261.5,4.16206008]
[1722455532619,3.06508,3262.6,3261.5,4.16205008]
[1722455532819,0.05000007,3262.5,3261.6,6.05117829]
[1722455533031,3.06458,3263.1,3261.6,3.04652141]
[1722455533185,3.06401,3263.7,3262.4,3.06515]
[1722455533186,3.06421,3263.5,3262.4,3.06515]
[1722455533392,0.05000007,3263.4,3262.3,2.2833]
[1722455533915,0.05000007,3263.4,3262.5,3.06507]
[1722455534112,0.05000007,3263.3,3262.5,3.06507]
[1722455534336,3.06454,3263.2,3262.3,2.2833]
[1722455534684,3.06372,3264.0,3262.7,3.06487]
[1722455534786,0.05000007,3263.9,3262.8,3.06483]
[1722455534991,3.11382007,3263.9,3262.9,3.06475]
[1722455535194,0.05000007,3263.9,3263.0,3.06465]
[1722455535500,0.05000007,3263.9,3262.9,3.06475]
[1722455535501,0.05000007,3263.9,3263.2,3.06446]
[1722455535853,5.51118,3264.9,3263.3,35.05167427]
[1722455535854,3.06428,3263.4,3263.3,35.05167427]
[1722455535999,3.370708,3263.4,3263.3,0.05167427]
[1722455536193,3.06511,3262.6,3261.5,3.55775008]
[1722455536390,0.05000007,3262.5,3261.7,3.06587]
[1722455536595,0.05000007,3262.5,3261.6,35.05260746]
[1722455536898,0.306428,3263.4,3261.7,0.05077734]
[1722455536899,3.06579,3261.8,3261.7,0.05077734]
[1722455537268,0.05000007,3261.9,3260.9,2.4784]
[1722455537446,0.86684293,3263.3,3261.0,35.0]
[1722455537447,3.06604,3261.6,3261.0,35.0]
[1722455537653,3.06492,3262.8,3261.0,35.0]
[1722455537952,0.05000007,3261.5,3261.0,35.05120757]
[1722455538173,3.11608007,3261.5,3261.0,35.05120757]
[1722455538297,3.11614007,3261.5,3261.0,0.05120757]
[1722455538508,3.06635,3261.2,3261.0,0.05120757]
[1722455538811,3.06654,3261.0,3260.4,35.0]
[1722455539016,0.05000007,3260.9,3260.5,0.05151499]
[1722455539332,3.11593007,3261.7,3260.5,0.05151499]
[1722455539535,3.06652,3261.1,3260.5,0.05151499]
[1722455539751,3.11656007,3261.0,3260.5,0.05151499]
[1722455539935,3.06623,3261.4,3260.5,0.05151499]
[1722455540247,3.06558,3262.1,3260.5,0.05151499]
[1722455540248,0.05000007,3261.3,3260.5,0.05151499]
[1722455540433,3.06636,3261.2,3260.5,0.05151499]
[1722455540635,3.11646007,3261.1,3260.5,0.05151499]
[1722455540817,3.06692,3260.6,3260.5,0.05151499]
[1722455541034,0.05000007,3261.1,3259.8,5.4e-06]
[1722455541225,3.06687,3260.7,3259.8,5.4e-06]
[1722455541448,3.06706,3260.5,3259.9,0.05188401]
[1722455541722,0.31164201,3261.0,3259.8,5.4e-06]
[1722455541723,3.06757,3259.9,3259.8,5.4e-06]
[1722455542179,3.06749,3260.0,3259.8,5.4e-06]
[1722455542395,3.11757007,3259.9,3259.8,5.4e-06]
[1722455542673,6.44689701,3259.9,3259.8,5.4e-06]
[1722455542884,3.37932701,3259.9,3259.8,5.4e-06]
[1722455543027,3.06738,3260.2,3259.8,5.4e-06]
[1722455543230,0.05000007,3260.1,3259.8,5.4e-06]
[1722455543430,3.11739007,3260.1,3259.8,5.4e-06]
[1722455543630,3.06689,3260.7,3259.8,5.4e-06]
[1722455543876,3.06666,3260.9,3259.8,5.4e-06]
[1722455544183,3.06631,3261.3,3260.0,3.06746]
[1722455544184,0.05000007,3260.8,3260.0,3.06746]
[1722455544499,0.05000007,3260.8,3260.1,35.0]
[1722455544848,3.06636,3261.2,3260.1,35.0]
[1722455545008,0.05000007,3261.1,3259.8,3.0000054]
[1722455545208,3.06718,3260.4,3259.8,5.4e-06]
[1722455545357,0.92062613,3261.9,3259.8,5.4e-06]
[1722455545358,0.05000007,3260.3,3259.8,5.4e-06]
[1722455545557,0.05000007,3260.7,3259.8,5.4e-06]
[1722455545792,3.05000007,3261.3,3259.8,5.4e-06]
[1722455545974,0.35500008,3261.2,3259.8,5.4e-06]
[1722455546176,0.05000007,3261.2,3259.8,5.4e-06]
[1722455546381,3.06751,3260.0,3259.8,5.4e-06]
[1722455546590,3.06724,3260.3,3259.8,5.4e-06]
[1722455546833,3.06757,3259.9,3259.8,5.4e-06]
[1722455547110,3.0,3261.6,3259.8,5.4e-06]
[1722455547321,2.4018,3261.8,3259.8,5.4e-06]
[1722455547322,3.06655,3261.0,3259.8,3.0676554]
[1722455547459,3.0668,3260.8,3259.8,5.4e-06]
[1722455547655,0.05000007,3260.7,3259.8,3.0676154]
[1722455547910,0.3,3261.5,3259.8,3.1289625]
[1722455547911,3.06654,3261.0,3259.8,3.1289625]
[1722455548114,0.05000007,3260.9,3259.8,0.0613525]
[1722455548416,0.05000007,3260.9,3259.8,5.4e-06]
[1722455548631,3.06684,3260.7,3259.8,5.4e-06]
[1722455548763,6.13514,3259.9,3259.8,5.4e-06]
[1722455550176,9.20271,3259.9,3259.8,5.4e-06]
[1722455550377,6.13514,3259.9,3259.8,5.4e-06]
[1722455550816,3.06757,3259.9,3259.8,5.4e-06]
[1722455551025,6.13514,3259.9,3259.8,5.4e-06]
[1722455551176,9.509467,3259.9,3259.8,5.4e-06]
[1722455551675,14.07938361,3259.9,3259.8,5.4e-06]
[1722455551875,15.516867,3259.9,3259.8,5.4e-06]
[1722455552056,14.966867,3259.9,3259.8,5.4e-06]
[1722455552531,11.966867,3259.9,3259.8,5.4e-06]
[1722455552677,15.034437,3259.9,3259.8,5.4e-06]
[1722455553228,19.59696687,3259.9,3259.8,5.4e-06]
[1722455553364,18.034437,3259.9,3259.8,5.4e-06]
[1722455553568,22.66461446,3259.9,3259.8,5.4e-06]
[1722455553805,23.64192692,3259.9,3259.8,5.4e-06]
[1722455554115,23.64192692,3259.9,3258.2,0.005]
[1722455554116,9.20583,3258.8,3258.2,0.005]
[1722455554316,10.126413,3258.8,3258.2,0.005]
[1722455554871,7.057803,3258.8,3258.2,0.005]
[1722455555117,10.126413,3258.8,3258.2,0.005]
[1722455555337,7.057803,3258.8,3258.2,0.005]
[1722455555635,3.06861,3258.8,3258.2,0.005]
[1722455555767,6.13722,3258.8,3258.2,0.005]
[1722455556724,3.0,3259.5,3258.2,0.005]
[1722455556725,3.06846,3259.0,3258.2,0.005]
[1722455556868,3.11858007,3258.9,3258.2,0.005]
[1722455557226,6.13722,3258.8,3258.2,0.005]
[1722455557374,6.75594201,3258.8,3258.3,35.0]
[1722455558427,6.75594201,3258.8,3258.3,34.5965625]
[1722455558648,6.75594201,3258.8,3257.3,0.25]
[1722455558802,6.75594201,3258.8,3256.4,0.1464054]
[1722455558803,0.31892704,3258.1,3256.4,0.1464054]
[1722455559140,3.07173,3255.5,3254.7,0.00087]
[1722455559268,0.8092,3257.2,3254.7,0.00087]
[1722455559269,3.07092,3256.4,3254.7,0.00087]
[1722455559472,3.0721,3255.1,3254.7,0.00087]
[1722455559695,9.21714,3254.8,3254.7,0.00087]
[1722455559972,3.07238,3254.8,3254.7,0.00087]
[1722455560196,0.05000007,3255.1,3254.7,0.00087]
[1722455560725,3.12145007,3255.8,3254.1,2.82301]
[1722455560905,0.05000007,3255.7,3254.2,0.2791464]
[1722455561105,3.07055,3256.8,3254.9,2.3899]
[1722455561325,3.07007,3257.3,3255.2,3.07194]
[1722455561516,0.9187802,3258.0,3255.0,0.06143062]
[1722455561517,3.0698,3257.6,3256.0,3.07124]
[1722455561717,5.49294774,3258.6,3255.3,0.06142498]
[1722455561718,0.05000007,3257.5,3256.1,3.13252807]
[1722455561930,2.4479,3259.0,3256.2,0.31325281]
[1722455561931,3.06932,3258.1,3256.2,0.31325281]
[1722455562128,0.05000007,3258.0,3256.6,3.07066]
[1722455562292,0.05000007,3258.0,3256.9,3.07039]
[1722455562599,0.05000007,3258.0,3255.9,5.3899]
[1722455562600,3.06872,3258.7,3257.0,3.13168973]
[1722455562799,0.05000007,3258.6,3257.0,3.13168973]
[1722455563133,3.0692,3258.2,3256.3,3.07095]
[1722455563296,0.35692007,3258.1,3256.5,3.07076]
[1722455563494,3.42620007,3258.1,3256.5,3.07076]
[1722455563754,3.06937,3258.0,3256.5,3.07076]
[1722455563954,0.05000007,3257.9,3256.4,0.307095]
[1722455564170,5.49856,3259.7,3256.5,2.4152]
[1722455564171,3.06891,3258.5,3256.5,2.4152]
[1722455564478,3.06928,3258.1,3256.6,3.3428795]
[1722455564625,0.05000007,3258.0,3256.6,0.2722295]
[1722455564827,3.06968,3257.7,3256.6,0.2722295]
[1722455565061,0.05000007,3257.6,3256.7,0.06140855]
[1722455565263,3.06909,3258.3,3256.8,0.06139792]
[1722455565523,1.23004,3259.8,3257.3,2.3566]
[1722455565730,1.23004,3259.8,3256.8,3.75139796]
[1722455565731,1.23004,3259.8,3258.1,2.3566]
[1722455565930,3.06703,3260.5,3258.1,2.3566]
[1722455566124,3.06802,3259.5,3258.1,2.3566]
[1722455566389,2.32333941,3261.3,3258.1,2.3566]
[1722455566390,3.06812,3259.4,3258.1,2.3566]
[1722455566672,3.06845,3259.0,3258.2,0.04710125]
[1722455566964,3.06869,3258.8,3257.3,5.38342]
[1722455567137,0.306812,3259.3,3257.3,2.3134]
[1722455567338,3.06757,3260.0,3257.4,0.04759401]
[1722455567536,2.35004744,3259.9,3257.4,0.04759401]
[1722455567839,3.06928,3258.1,3257.3,2.3134]
[1722455568054,3.06928,3258.1,3257.5,0.0475324]
[1722455568260,3.0,3259.4,3257.5,0.0475324]
[1722455568568,3.06862,3258.8,3257.6,0.0474708]
[1722455569275,0.606797,3259.3,3257.6,0.0474708]
[1722455569276,3.06843,3259.0,3257.7,0.06138636]
[1722455569439,0.606797,3259.3,3257.8,0.0473476]
[1722455569770,3.06824,3259.2,3257.8,0.0473476]
[1722455569939,3.06725,3260.3,3257.8,0.0473476]
[1722455569940,3.06741,3260.1,3257.8,0.0473476]
[1722455570167,3.06894,3258.5,3257.8,0.0473476]
[1722455570379,3.06894,3258.5,3257.3,2.3134]
[1722455570380,3.06785,3259.7,3257.3,2.3134]
[1722455570579,3.06936,3258.0,3257.9,0.047286]
[1722455570750,3.06948,3257.9,3257.3,2.3134]
[1722455571084,3.06957,3257.8,3257.4,0.04778933]
[1722455571267,3.06944,3258.0,3257.3,2.3134]
[1722455571478,3.06983,3257.5,3257.4,0.04778933]
[1722455571675,3.06986,3257.5,3257.3,2.3134]
[1722455571860,3.06953,3257.9,3257.4,0.04778933]
[1722455572064,3.06969,3257.7,3257.3,2.3134]
[1722455572264,3.0,3259.3,3257.3,2.3134]
[1722455572467,3.06838,3259.1,3257.4,0.10931489]
[1722455572666,3.06894,3258.5,3257.4,0.10931489]
[1722455572854,3.06824,3259.2,3257.9,3.06942]
[1722455573055,9.12701,3260.6,3258.0,0.368319]
[1722455573056,3.06793,3259.6,3258.0,0.368319]
[1722455573306,3.06735,3260.2,3258.1,2.4333]
[1722455573307,3.06796,3259.5,3258.1,2.4333]
[1722455573601,2.3859,3260.8,3258.1,2.4333]
[1722455573602,3.06787,3259.6,3258.2,0.06137177]
[1722455573754,3.06821,3259.3,3258.3,0.06136875]
[1722455574068,1.229562,3261.3,3258.4,0.04710912]
[1722455574069,3.06649,3261.1,3258.4,0.04710912]
[1722455574254,3.06862,3258.8,3258.1,2.4333]
[1722455574455,3.06864,3258.8,3258.5,0.04704755]
[1722455574656,3.06864,3258.8,3258.1,2.4333]
[1722455574657,3.06828,3259.2,3258.2,0.06138205]
[1722455574905,3.06828,3259.2,3258.6,0.04698598]
[1722455575200,3.06747,3260.1,3258.2,3.13054205]
[1722455575507,3.06805,3259.4,3258.7,0.04692442]
[1722455575799,3.06794,3259.6,3258.4,0.06137205]
[1722455576000,3.06768,3259.8,3258.8,0.04686286]
[1722455576189,3.06786,3259.6,3258.7,0.0613649]
[1722455576500,3.06814,3259.3,3258.9,0.0468013]
[1722455576656,3.06843,3259.0,3258.1,2.4333]
[1722455576856,3.0683,3259.2,3258.1,2.4333]
[1722455577171,3.06772,3259.8,3258.4,3.06897]
[1722455577371,3.06707,3260.5,3258.8,2.3289]
[1722455577571,6.06627,3261.3,3258.9,0.06135718]
[1722455577572,3.06744,3260.1,3258.9,0.06135718]
[1722455577771,3.06795,3259.6,3258.8,2.3289]
[1722455578007,0.306649,3261.0,3258.8,2.3289]
[1722455578220,0.306649,3261.0,3257.4,2.3793]
[1722455578221,3.06777,3259.7,3257.4,2.3793]
[1722455578378,3.0,3258.7,3256.6,0.005]
[1722455578704,3.06969,3257.7,3256.6,0.005]
[1722455578908,3.06996,3257.4,3256.6,0.005]
[1722455579107,3.0,3258.4,3256.6,0.005]
[1722455579278,3.06859,3258.9,3256.6,0.005]
[1722455579464,3.06849,3259.0,3256.6,0.005]
[1722455579465,3.0,3258.8,3256.6,0.005]
[1722455579818,3.06927,3258.1,3256.6,3.44456954]
[1722455579960,0.3,3258.7,3256.7,2.336]
[1722455579961,3.06946,3257.9,3256.7,2.336]
[1722455580312,0.3,3258.7,3256.7,2.336]
[1722455580664,3.0704,3256.9,3256.6,0.005]
[1722455580866,3.0,3258.2,3256.6,0.005]
[1722455581111,3.06957,3257.8,3256.6,3.07568]
[1722455581414,0.3,3258.1,3256.6,0.005]
[1722455581704,3.36873,3258.7,3257.2,3.07011]
[1722455581705,3.06885,3258.6,3257.2,3.07011]
[1722455581861,3.06937,3258.0,3257.3,2.3394]
[1722455582059,3.06923,3258.2,3257.3,2.3394]
[1722455582300,0.3,3258.7,3257.4,0.0613965]
[1722455582500,3.06959,3257.8,3257.3,2.3394]
[1722455582708,3.06993,3257.4,3257.3,2.3394]
[1722455582874,3.06984,3257.5,3256.6,0.005]
[1722455583073,3.06853,3258.9,3256.6,0.005]
[1722455583387,2.3579,3259.1,3256.6,0.005]
[1722455583388,3.07059,3256.7,3256.6,0.005]
[1722455583579,3.07021,3257.1,3256.6,0.005]
[1722455583799,3.06973,3257.7,3256.6,0.005]
[1722455583998,3.06854,3258.9,3256.7,2.3928]
[1722455584264,3.07039,3257.0,3256.7,2.3928]
[1722455584465,0.61293833,3258.5,3256.7,2.3928]
[1722455584697,1.53234582,3258.9,3256.7,2.3928]
[1722455584698,0.61293833,3259.0,3256.7,2.3928]
[1722455584896,3.07049,3256.8,3256.7,2.3928]
[1722455585065,6.14118,3256.7,3256.6,0.005]
[1722455585465,12.28236,3256.7,3256.6,0.005]
[1722455585709,3.07123,3256.1,3254.8,2.3263]
[1722455585878,3.07041,3256.9,3254.8,2.3263]
[1722455586211,3.07192,3255.3,3254.9,0.23263]
[1722455586413,3.0719,3255.4,3254.2,0.2791464]
[1722455586583,3.07125,3256.0,3254.3,0.06144907]
[1722455586781,3.99053933,3256.8,3255.0,0.04748422]
[1722455586782,0.307041,3256.8,3255.0,0.04748422]
[1722455587125,3.07097,3256.3,3254.8,3.07237]
[1722455587338,3.07097,3256.3,3254.9,3.07224]
[1722455587613,3.07139,3255.9,3254.9,0.04754592]
[1722455587799,3.07004,3257.3,3254.9,0.04754592]
[1722455587800,3.07146,3255.8,3254.9,0.04754592]
[1722455587996,3.07139,3255.9,3254.4,2.2767]
[1722455588167,3.07108,3256.2,3254.8,3.0723]
[1722455588510,3.07133,3256.0,3254.9,0.04754592]
[1722455588722,3.07123,3256.1,3254.9,0.04754592]
[1722455588864,3.0716,3255.7,3254.5,0.22767]
[1722455589066,3.07104,3256.3,3255.0,0.04748422]
[1722455589390,0.307104,3256.2,3254.4,2.2767]
[1722455589590,3.07226,3255.0,3254.4,2.2767]
[1722455589791,3.0,3256.5,3254.5,0.04779278]
[1722455589970,3.07219,3255.1,3254.4,2.2767]
[1722455590167,3.07144,3255.8,3254.4,2.2767]
[1722455590372,3.07232,3254.9,3254.4,2.2767]
[1722455590720,3.07232,3254.9,3253.6,1.58088998]
[1722455590721,3.07263,3254.6,3253.6,2.4926]
[1722455590882,3.07315,3254.0,3253.6,2.4926]
[1722455591085,3.07211,3255.1,3253.7,0.04991041]
[1722455591297,0.91934143,3255.8,3253.6,2.4926]
[1722455591298,3.02464744,3255.0,3253.6,0.011]
[1722455591486,3.07326,3253.9,3253.6,0.011]
[1722455591703,3.07342,3253.7,3253.6,0.011]
[1722455591904,9.22026,3253.7,3253.6,0.011]
[1722455592216,6.14684,3253.7,3253.6,0.011]
[1722455592386,3.07342,3253.7,3253.6,0.011]
[1722455592585,3.07334,3253.8,3253.6,0.011]
[1722455592787,3.07323,3253.9,3253.6,0.011]
[1722455593001,3.07273,3254.5,3253.6,0.011]
[1722455593202,3.0713,3256.0,3253.6,0.011]
[1722455593400,0.61122026,3256.1,3253.6,0.011]
[1722455593401,3.0725,3254.7,3253.6,0.011]
[1722455593585,1.58953916,3255.5,3253.7,0.04991041]
[1722455593914,3.0719,3255.4,3253.7,0.04991041]
[1722455594084,3.07124,3256.1,3254.0,3.07306]
[1722455594268,8.1164824,3257.0,3254.1,0.61144471]
[1722455594269,2.296,3257.0,3254.1,0.61144471]
[1722455594477,3.07075,3256.6,3254.2,0.73745247]
[1722455594710,3.07126,3256.0,3254.3,0.55]
[1722455594869,0.59773583,3256.9,3254.3,0.55]
[1722455594870,3.07139,3255.9,3254.3,0.59953997]
[1722455595065,0.59773583,3256.9,3254.3,0.59953997]
[1722455595284,0.59773583,3256.9,3254.4,3.13416055]
[1722455595285,3.07098,3256.3,3254.4,3.13416055]
[1722455595513,0.307098,3256.3,3254.6,2.3094]
[1722455595724,3.378078,3256.3,3254.7,0.11073288]
[1722455596013,3.07158,3255.7,3254.7,0.04929309]
[1722455596227,3.07129,3256.0,3254.8,0.55]
[1722455596370,0.307098,3256.3,3254.9,0.06144318]
[1722455596572,3.07022,3257.1,3255.2,3.69]
[1722455596823,3.06978,3257.6,3255.8,6.76142]
[1722455596976,3.06973,3257.7,3255.9,3.68269722]
[1722455597170,0.91724836,3258.4,3256.0,2.4788]
[1722455597396,0.61149891,3258.1,3256.0,2.52721929]
[1722455597616,3.07006,3257.3,3256.1,0.55]
[1722455597799,3.0707,3256.6,3256.0,2.4788]
[1722455597982,3.07047,3256.9,3256.0,2.4788]
[1722455598170,3.0708,3256.5,3256.1,0.04815948]
[1722455598373,3.07063,3256.7,3256.1,0.04815948]
[1722455598575,0.61149891,3257.7,3256.0,2.4788]
[1722455598825,3.50528295,3258.3,3256.6,3.69]
[1722455598826,4.29237782,3258.0,3256.6,3.69]
[1722455599010,1.53045155,3259.0,3256.6,3.69]
[1722455599011,3.68020891,3258.7,3256.8,2.3488]
[1722455599212,3.06907,3258.4,3257.2,3.69]
[1722455599511,3.06871,3258.7,3257.3,0.0613962]
[1722455599685,3.06871,3258.7,3257.3,0.65875661]
[1722455599686,3.06899,3258.4,3257.3,0.65875661]
[1722455599887,3.0694,3258.0,3257.3,0.04736041]
[1722455600109,3.06919,3258.2,3256.8,2.3488]
[1722455600291,0.306871,3258.6,3257.4,0.04650399]
[1722455600495,1.53045155,3259.6,3257.2,3.69]
[1722455600496,3.06923,3258.2,3257.2,3.69]
[1722455600693,0.61149891,3259.3,3257.5,0.04644238]
[1722455600894,3.06934,3258.1,3257.3,0.0465656]
[1722455601083,3.06884,3258.6,3256.8,2.3488]
[1722455601281,3.06951,3257.9,3256.8,2.3488]
[1722455601505,0.306951,3257.8,3256.8,2.3488]
[1722455601824,3.06952,3257.9,3256.8,2.3488]
[1722455601986,3.06959,3257.8,3256.8,2.3488]
[1722455602353,0.61299244,3258.7,3256.9,0.04528355]
[1722455602354,3.06871,3258.7,3256.9,0.04528355]
[1722455602624,0.61299244,3258.8,3256.9,0.04528355]
[1722455602625,3.07031,3257.0,3256.9,0.04528355]
[1722455602924,3.06983,3257.5,3255.1,2.2583]
[1722455603108,3.07065,3256.7,3255.1,0.59483]
[1722455603322,3.07195,3255.3,3255.2,0.04633179]
[1722455603484,6.14393,3255.3,3255.2,0.04633179]
[1722455603683,0.61299244,3255.9,3254.0,3.69]
[1722455603884,3.07062,3256.7,3254.0,3.69]
[1722455603885,0.61299244,3256.6,3254.2,2.2583]
[1722455604225,0.91948867,3256.8,3254.6,3.69]
[1722455604380,0.91948867,3256.8,3254.9,3.07228]
[1722455604381,3.07049,3256.8,3254.9,3.07228]
[1722455604586,3.07036,3257.0,3254.8,2.3201]
[1722455604898,0.256983,3257.4,3254.8,2.3201]
[1722455604899,3.07014,3257.2,3254.9,0.0462521]
[1722455605166,3.07169,3255.6,3254.9,0.0462521]
[1722455605311,3.07148,3255.8,3254.9,0.0462521]
[1722455605508,3.07126,3256.0,3254.8,2.3201]
[1722455605711,3.07123,3256.1,3254.9,0.29345361]
[1722455605921,3.68333244,3257.0,3254.9,0.23201]
[1722455606122,0.91948867,3257.1,3254.8,2.3201]
[1722455606123,3.07119,3256.1,3254.8,2.3201]
[1722455606342,3.07161,3255.7,3254.8,2.3201]
[1722455606539,3.07112,3256.2,3254.8,2.3201]
[1722455606868,3.07072,3256.6,3255.0,3.69]
[1722455607046,3.0703,3257.1,3255.1,0.55]
[1722455607256,3.07056,3256.8,3255.2,0.424]
[1722455607557,0.30703,3257.0,3255.6,6.76162]
[1722455607756,3.326933,3257.4,3255.7,3.02691781]
[1722455607942,2.4349,3257.3,3255.7,0.04575858]
[1722455608258,3.07129,3256.0,3255.7,0.04575858]
[1722455608455,0.614246,3255.9,3254.4,2.3863]
[1722455608755,3.07065,3256.7,3254.7,3.69]
[1722455608756,3.0706,3256.7,3254.7,3.69]
[1722455608928,3.07099,3256.3,3254.7,3.69]
[1722455609127,3.0715,3255.8,3254.8,0.0447639]
[1722455609328,0.61299244,3256.7,3254.8,0.0447639]
[1722455609658,3.07173,3255.5,3254.4,2.3863]
[1722455609975,3.07134,3256.0,3254.5,0.34457131]
[1722455610180,3.07089,3256.4,3254.7,3.69]
[1722455610313,3.07091,3256.4,3254.7,3.69]
[1722455610660,3.0716,3255.7,3254.8,0.0443685]
[1722455610816,0.61299244,3256.7,3254.4,2.3863]
[1722455611015,3.07245,3254.8,3253.5,3.69]
[1722455611217,0.61299244,3256.1,3253.7,2.7225]
[1722455611447,4.60261279,3256.6,3253.7,2.7225]
[1722455611448,3.0715,3255.8,3254.1,3.69]
[1722455611765,3.07155,3255.7,3254.2,0.04337445]
[1722455611964,3.07202,3255.2,3254.2,0.04337445]
[1722455612140,0.307155,3255.6,3253.7,2.3524]
[1722455612141,3.07223,3255.0,3253.7,2.3524]
[1722455612342,3.07302,3254.2,3253.7,2.3524]
[1722455612560,3.07323,3253.9,3253.1,0.1464054]
[1722455612769,3.07302,3254.2,3253.1,0.1464054]
[1722455612916,3.07305,3254.1,3253.1,0.1464054]
[1722455613267,1.22664367,3255.6,3253.3,3.07373]
[1722455613268,3.07203,3255.2,3253.3,3.07373]
[1722455613428,3.99180744,3255.6,3253.5,3.0736]
[1722455613429,3.07184,3255.4,3253.5,3.0736]
[1722455613633,2.4145,3255.1,3253.3,3.07378]
[1722455613857,3.07342,3253.7,3253.1,0.1464054]
[1722455614016,3.33398867,3255.1,3253.1,0.1464054]
[1722455614017,3.07292,3254.3,3253.1,0.1464054]
[1722455614216,2.16053974,3255.3,3253.2,0.0614727]
[1722455614415,3.0723,3254.9,3253.7,2.4133]
[1722455614616,3.0725,3254.7,3253.8,0.24243]
[1722455614931,1.53031441,3255.5,3253.8,0.24243]
[1722455614932,0.307155,3255.6,3253.8,0.24243]
[1722455615126,3.07236,3254.9,3253.1,0.1464054]
[1722455615327,3.07286,3254.3,3253.1,0.1464054]
[1722455615532,3.07315,3254.0,3253.1,0.1464054]
[1722455615742,3.07306,3254.1,3253.1,0.1464054]
[1722455615941,3.0721,3255.1,3253.1,0.1464054]
[1722455615942,3.07272,3254.5,3253.1,0.1464054]
[1722455616257,3.07306,3254.1,3253.1,0.1464054]
[1722455616425,3.380112,3254.4,3253.1,0.1464054]
[1722455616627,3.07342,3253.7,3253.1,0.1464054]
[1722455617516,3.07341,3253.8,3253.1,0.1464054]
[1722455617517,3.07336,3253.8,3253.1,0.1464054]
[1722455617718,3.07312,3254.1,3253.1,0.1464054]
[1722455618020,3.07266,3254.6,3253.1,0.20788039]
[1722455618223,3.07229,3254.9,3253.1,0.20788039]
[1722455618527,3.07255,3254.7,3253.1,3.2203854]
[1722455618729,3.07248,3254.7,3253.1,3.2203854]
[1722455618927,3.07257,3254.6,3253.1,0.1464054]
[1722455619163,3.07273,3254.5,3253.1,3.1464054]
[1722455619364,3.07212,3255.1,3253.1,3.1464054]
[1722455619570,1.54732496,3255.2,3253.2,0.06147675]
[1722455619875,1.54732496,3255.2,3253.1,3.1464054]
[1722455619876,3.07307,3254.1,3253.1,3.1464054]
[1722455620031,3.07342,3253.7,3253.1,0.1464054]
[1722455620485,3.07343,3253.7,3253.1,0.1464054]
[1722455620685,3.07383,3253.3,3253.1,0.1464054]
[1722455620884,3.07312,3254.1,3253.1,0.1464054]
[1722455621111,3.0728,3254.4,3253.1,0.1464054]
[1722455621275,3.07369,3253.5,3253.2,0.04438895]
[1722455621489,3.07521,3251.8,3250.4,2.2656]
[1722455621741,3.07521,3251.8,3251.7,4.21858843]
[1722455622073,3.07458,3252.5,3251.7,4.21858843]
[1722455622272,3.07383,3253.3,3251.8,0.42185884]
[1722455622511,1.22354572,3253.9,3251.9,2.2557]
[1722455622714,0.61177184,3254.1,3252.0,0.06149155]
[1722455622896,0.61177184,3254.1,3252.6,3.07438]
[1722455623101,0.61177184,3254.1,3252.0,0.06149155]
[1722455623102,0.61177184,3254.1,3252.8,3.07424]
[1722455623380,0.61177184,3254.1,3253.0,2.4668]
[1722455623603,3.07251,3254.7,3253.1,0.55]
[1722455623802,3.07201,3255.2,3253.1,6.66356091]
[1722455624078,3.0721,3255.1,3253.1,3.58958091]
[1722455624290,3.07229,3254.9,3253.1,0.58958091]
[1722455624490,0.91892684,3255.6,3253.1,0.03958091]
[1722455624491,3.07244,3254.8,3253.1,0.03958091]
[1722455624674,3.07248,3254.7,3253.1,0.58958091]
[1722455624900,3.07259,3254.6,3253.2,0.61304309]
[1722455625132,3.07241,3254.8,3253.3,0.03792903]
[1722455625339,3.07232,3254.9,3253.3,0.03792903]
[1722455625473,3.07222,3255.0,3253.3,0.09939519]
[1722455625674,3.07202,3255.2,3253.4,3.0737]
[1722455625916,0.307155,3255.6,3253.4,2.41906726]
[1722455626120,3.07218,3255.1,3253.5,0.79190673]
[1722455626274,3.07214,3255.1,3253.5,0.0378055]
[1722455626477,3.0722,3255.0,3253.5,0.0378055]
[1722455626711,3.07248,3254.7,3253.5,0.0378055]
[1722455626915,3.07228,3255.0,3253.5,0.0378055]
[1722455627116,3.07222,3255.0,3253.5,0.0378055]